[Event "Titled Tuesday Blitz January 25 2022"]
[White "FGHSMN"]
[Black "Kirillov-Dmitry"]
[WhiteElo "2706"]
[BlackElo "2516"]
[Result "1-0"]
[Round "07"]
[TimeControl "180+1"]
[Date "2022.01.26"]
[WhiteClock "0:00:39"]
[BlackClock "0:00:02"]

1. b3 {[%clk 0:03:00]}  Nf6 {[%clk 0:02:57]} 2. Bb2 {[%clk 0:02:59]}  e6 {[%clk 0:02:57]} 3. Nf3 {[%clk 0:02:59]}  d5 {[%clk 0:02:57]} 4. c4 {[%clk 0:02:58]}  Be7 {[%clk 0:02:47]} 5. e3 {[%clk 0:02:56]}  O-O {[%clk 0:02:43]} 6. Nc3 {[%clk 0:02:55]}  c5 {[%clk 0:02:42]} 7. cxd5 {[%clk 0:02:51]}  Nxd5 {[%clk 0:02:35]} 8. h4 {[%clk 0:02:50]}  Nc6 {[%clk 0:02:19]} 9. Qb1 {[%clk 0:02:43]}  Bf6 {[%clk 0:02:15]} 10. Ng5 {[%clk 0:02:39]}  g6 {[%clk 0:02:04]} 11. Nce4 {[%clk 0:02:37]}  Bxb2 {[%clk 0:01:47]} 12. Qxb2 {[%clk 0:02:38]}  h6 {[%clk 0:01:48]} 13. Nf3 {[%clk 0:02:29]}  b6 {[%clk 0:01:43]} 14. Bc4 {[%clk 0:02:25]}  f5 {[%clk 0:01:38]} 15. Nc3 {[%clk 0:02:17]}  Qf6 {[%clk 0:01:20]} 16. O-O-O {[%clk 0:02:07]}  Rd8 {[%clk 0:01:06]} 17. h5 {[%clk 0:01:56]}  g5 {[%clk 0:01:04]} 18. Nxd5 {[%clk 0:01:38]}  Qxb2+ {[%clk 0:00:59]} 19. Kxb2 {[%clk 0:01:39]}  exd5 {[%clk 0:00:59]} 20. Bb5 {[%clk 0:01:40]}  Bb7 {[%clk 0:00:40]} 21. Bxc6 {[%clk 0:01:38]}  Bxc6 {[%clk 0:00:40]} 22. d4 {[%clk 0:01:38]}  c4 {[%clk 0:00:36]} 23. Ne5 {[%clk 0:01:35]}  Rac8 {[%clk 0:00:36]} 24. Rc1 {[%clk 0:01:27]}  b5 {[%clk 0:00:36]} 25. Rhg1 {[%clk 0:01:12]}  a5 {[%clk 0:00:32]} 26. g4 {[%clk 0:01:10]}  Bd7 {[%clk 0:00:22]} 27. gxf5 {[%clk 0:01:04]}  Bxf5 {[%clk 0:00:22]} 28. f4 {[%clk 0:01:05]}  g4 {[%clk 0:00:15]} 29. Nxg4 {[%clk 0:01:04]}  Bxg4 {[%clk 0:00:13]} 30. Rxg4+ {[%clk 0:01:05]}  Kh7 {[%clk 0:00:12]} 31. Rcg1 {[%clk 0:01:02]}  c3+ {[%clk 0:00:10]} 32. Kc2 {[%clk 0:01:01]}  Re8 {[%clk 0:00:10]} 33. R1g3 {[%clk 0:00:56]}  Re7 {[%clk 0:00:05]} 34. f5 {[%clk 0:00:52]}  Rce8 {[%clk 0:00:04]} 35. f6 {[%clk 0:00:41]}  Rxe3 {[%clk 0:00:04]} 36. Rg7+ {[%clk 0:00:41]}  Kh8 {[%clk 0:00:03]} 37. f7 {[%clk 0:00:41]}  Rf8 {[%clk 0:00:02]} 38. Rg8+ {[%clk 0:00:39]} 1-0


[Site "https://www.chess.com"]

[Event "Titled Tuesday Blitz January 25 2022"]
[White "Garriga Cazorla, Pere"]
[Black "Bacrot, Etienne"]
[WhiteFideId "32011601"]
[BlackFideId "605506"]
[WhiteElo "2458"]
[BlackElo "2673"]
[Result "0-1"]
[Round "07"]
[TimeControl "180+1"]
[Date "2022.01.26"]
[WhiteClock "0:00:13"]
[BlackClock "0:00:29"]

1. d4 {[%clk 0:03:00]}  Nf6 {[%clk 0:02:59]} 2. c4 {[%clk 0:03:00]}  g6 {[%clk 0:02:59]} 3. Nc3 {[%clk 0:03:00]}  d5 {[%clk 0:02:59]} 4. cxd5 {[%clk 0:02:58]}  Nxd5 {[%clk 0:03:00]} 5. e4 {[%clk 0:02:59]}  Nxc3 {[%clk 0:03:00]} 6. bxc3 {[%clk 0:02:59]}  Bg7 {[%clk 0:03:01]} 7. Bb5+ {[%clk 0:03:00]}  c6 {[%clk 0:03:00]} 8. Ba4 {[%clk 0:03:01]}  O-O {[%clk 0:03:00]} 9. Ne2 {[%clk 0:03:01]}  a5 {[%clk 0:03:01]} 10. e5 {[%clk 0:02:58]}  b5 {[%clk 0:03:01]} 11. Bc2 {[%clk 0:02:58]}  c5 {[%clk 0:03:01]} 12. Be4 {[%clk 0:02:54]}  Ra7 {[%clk 0:02:57]} 13. h4 {[%clk 0:02:54]}  Bb7 {[%clk 0:02:45]} 14. Bxb7 {[%clk 0:02:51]}  Rxb7 {[%clk 0:02:46]} 15. h5 {[%clk 0:02:52]}  Qd5 {[%clk 0:02:42]} 16. hxg6 {[%clk 0:02:44]}  hxg6 {[%clk 0:02:32]} 17. Rh3 {[%clk 0:02:09]}  Qxg2 {[%clk 0:02:21]} 18. Rg3 {[%clk 0:02:05]}  Qh1+ {[%clk 0:02:18]} 19. Rg1 {[%clk 0:02:06]}  Qe4 {[%clk 0:02:17]} 20. Be3 {[%clk 0:02:07]}  Rd8 {[%clk 0:02:15]} 21. Ng3 {[%clk 0:01:59]}  Qd5 {[%clk 0:02:15]} 22. Qg4 {[%clk 0:01:59]}  Qc4 {[%clk 0:02:11]} 23. Rc1 {[%clk 0:01:57]}  cxd4 {[%clk 0:02:10]} 24. cxd4 {[%clk 0:01:54]}  Qb4+ {[%clk 0:02:10]} 25. Kf1 {[%clk 0:01:54]}  Bxe5 {[%clk 0:02:06]} 26. Nf5 {[%clk 0:01:38]}  Bf6 {[%clk 0:02:02]} 27. Rh1 {[%clk 0:01:29]}  e6 {[%clk 0:01:44]} 28. Nh6+ {[%clk 0:01:22]}  Kf8 {[%clk 0:01:38]} 29. Qf3 {[%clk 0:01:18]}  Qe7 {[%clk 0:01:29]} 30. Ng4 {[%clk 0:01:17]}  Bg7 {[%clk 0:01:26]} 31. Rh7 {[%clk 0:01:17]}  Rc7 {[%clk 0:01:20]} 32. Rxc7 {[%clk 0:01:08]}  Qxc7 {[%clk 0:01:20]} 33. Bh6 {[%clk 0:01:07]}  Bxh6 {[%clk 0:01:12]} 34. Nxh6 {[%clk 0:01:06]}  Qc1+ {[%clk 0:00:55]} 35. Kg2 {[%clk 0:01:02]}  Qc6 {[%clk 0:00:55]} 36. Rxf7+ {[%clk 0:00:21]}  Ke8 {[%clk 0:00:55]} 37. Rf6 {[%clk 0:00:21]}  Ke7 {[%clk 0:00:42]} 38. Rf7+ {[%clk 0:00:20]}  Kd6 {[%clk 0:00:39]} 39. Rg7 {[%clk 0:00:21]}  Qxf3+ {[%clk 0:00:37]} 40. Kxf3 {[%clk 0:00:21]}  Rf8+ {[%clk 0:00:37]} 41. Ke3 {[%clk 0:00:19]}  Nc6 {[%clk 0:00:36]} 42. Rxg6 {[%clk 0:00:16]}  Nb4 {[%clk 0:00:36]} 43. f4 {[%clk 0:00:15]}  Nxa2 {[%clk 0:00:36]} 44. f5 {[%clk 0:00:15]}  b4 {[%clk 0:00:34]} 45. Rxe6+ {[%clk 0:00:14]}  Kc7 {[%clk 0:00:33]} 46. Ng4 {[%clk 0:00:13]}  b3 {[%clk 0:00:33]} 47. Kd3 {[%clk 0:00:13]}  a4 {[%clk 0:00:32]} 48. Ne5 {[%clk 0:00:12]}  b2 {[%clk 0:00:30]} 49. Rc6+ {[%clk 0:00:12]}  Kb7 {[%clk 0:00:28]} 50. Kc2 {[%clk 0:00:13]}  Nb4+ {[%clk 0:00:28]} 51. Kxb2 {[%clk 0:00:13]}  Nxc6 {[%clk 0:00:29]} 0-1


[Site "https://www.chess.com"]

[Event "Titled Tuesday Blitz January 25 2022"]
[White "Hakemi, Arman"]
[Black "Martin Duque, Jesus"]
[WhiteFideId "22520805"]
[BlackFideId "2208954"]
[WhiteElo "2208"]
[BlackElo "2243"]
[Result "1-0"]
[Round "07"]
[TimeControl "180+1"]
[Date "2022.01.26"]
[WhiteClock "0:00:27"]
[BlackClock "0:01:03"]

1. e4 {[%clk 0:03:00]}  c5 {[%clk 0:02:59]} 2. Nf3 {[%clk 0:02:56]}  b6 {[%clk 0:02:59]} 3. d4 {[%clk 0:02:54]}  cxd4 {[%clk 0:03:00]} 4. Nxd4 {[%clk 0:02:55]}  Bb7 {[%clk 0:03:00]} 5. Nc3 {[%clk 0:02:56]}  a6 {[%clk 0:03:00]} 6. Bc4 {[%clk 0:02:54]}  e6 {[%clk 0:03:00]} 7. Be3 {[%clk 0:02:52]}  b5 {[%clk 0:03:00]} 8. Bd3 {[%clk 0:02:38]}  Qc7 {[%clk 0:02:54]} 9. a3 {[%clk 0:02:28]}  Nf6 {[%clk 0:02:54]} 10. Qd2 {[%clk 0:02:24]}  Nc6 {[%clk 0:02:54]} 11. f4 {[%clk 0:02:19]}  Na5 {[%clk 0:02:49]} 12. e5 {[%clk 0:02:17]}  Nd5 {[%clk 0:02:49]} 13. Nxd5 {[%clk 0:02:18]}  Bxd5 {[%clk 0:02:50]} 14. b3 {[%clk 0:02:13]}  Rc8 {[%clk 0:02:41]} 15. O-O {[%clk 0:02:11]}  Be7 {[%clk 0:02:40]} 16. Rae1 {[%clk 0:02:02]}  Nc6 {[%clk 0:02:29]} 17. f5 {[%clk 0:01:52]}  Nxe5 {[%clk 0:02:13]} 18. Bf4 {[%clk 0:01:42]}  d6 {[%clk 0:02:14]} 19. fxe6 {[%clk 0:01:37]}  fxe6 {[%clk 0:02:14]} 20. Bg3 {[%clk 0:01:29]}  Bf6 {[%clk 0:02:00]} 21. c4 {[%clk 0:01:02]}  bxc4 {[%clk 0:01:57]} 22. bxc4 {[%clk 0:00:57]}  Nxc4 {[%clk 0:01:54]} 23. Nxe6 {[%clk 0:00:47]}  Nxd2 {[%clk 0:01:27]} 24. Nxc7+ {[%clk 0:00:46]}  Kd8 {[%clk 0:01:27]} 25. Nxd5 {[%clk 0:00:46]}  Nxf1 {[%clk 0:01:24]} 26. Kxf1 {[%clk 0:00:39]}  Rf8 {[%clk 0:01:20]} 27. Nxf6 {[%clk 0:00:38]}  Rxf6+ {[%clk 0:01:20]} 28. Kg1 {[%clk 0:00:34]}  Rc5 {[%clk 0:01:10]} 29. Bxa6 {[%clk 0:00:33]}  Ra5 {[%clk 0:01:10]} 30. Bc4 {[%clk 0:00:29]}  Kd7 {[%clk 0:01:05]} 31. a4 {[%clk 0:00:29]}  g5 {[%clk 0:01:04]} 32. Bb5+ {[%clk 0:00:29]}  Kc7 {[%clk 0:01:03]} 33. Re7+ {[%clk 0:00:28]}  Kb6 {[%clk 0:01:03]} 34. Bf2+ {[%clk 0:00:27]} 1-0


[Site "https://www.chess.com"]

[Event "Titled Tuesday Blitz January 25 2022"]
[White "Hakobyan, Aram"]
[Black "Vasquez Schroeder, Rodrigo"]
[WhiteFideId "13306677"]
[BlackFideId "3400042"]
[WhiteElo "2557"]
[BlackElo "2568"]
[Result "0-1"]
[Round "07"]
[TimeControl "180+1"]
[Date "2022.01.26"]
[WhiteClock "0:00:38"]
[BlackClock "0:01:30"]

1. d4 {[%clk 0:02:48]}  d5 {[%clk 0:02:58]} 2. c3 {[%clk 0:02:47]}  Nf6 {[%clk 0:02:53]} 3. Bg5 {[%clk 0:02:47]}  Ne4 {[%clk 0:02:53]} 4. Bf4 {[%clk 0:02:47]}  Bf5 {[%clk 0:02:48]} 5. Qb3 {[%clk 0:02:47]}  b6 {[%clk 0:02:46]} 6. e3 {[%clk 0:02:45]}  e6 {[%clk 0:02:45]} 7. Nf3 {[%clk 0:02:43]}  Bd6 {[%clk 0:02:45]} 8. Bg3 {[%clk 0:02:30]}  O-O {[%clk 0:02:42]} 9. Nbd2 {[%clk 0:02:29]}  Nxd2 {[%clk 0:02:40]} 10. Nxd2 {[%clk 0:02:28]}  c5 {[%clk 0:02:41]} 11. Be2 {[%clk 0:02:28]}  Nc6 {[%clk 0:02:40]} 12. O-O {[%clk 0:02:28]}  Rc8 {[%clk 0:02:37]} 13. Rfe1 {[%clk 0:02:27]}  Qc7 {[%clk 0:02:33]} 14. Bxd6 {[%clk 0:02:25]}  Qxd6 {[%clk 0:02:33]} 15. Nf3 {[%clk 0:02:26]}  Rfd8 {[%clk 0:02:31]} 16. Qd1 {[%clk 0:02:24]}  h6 {[%clk 0:02:30]} 17. h3 {[%clk 0:02:24]}  e5 {[%clk 0:02:28]} 18. dxe5 {[%clk 0:02:20]}  Nxe5 {[%clk 0:02:29]} 19. Nxe5 {[%clk 0:02:21]}  Qxe5 {[%clk 0:02:29]} 20. Qa4 {[%clk 0:02:22]}  Rc7 {[%clk 0:02:27]} 21. Rad1 {[%clk 0:02:22]}  Be6 {[%clk 0:02:22]} 22. Bf3 {[%clk 0:02:21]}  Rcd7 {[%clk 0:02:21]} 23. Rd2 {[%clk 0:02:21]}  d4 {[%clk 0:02:06]} 24. cxd4 {[%clk 0:02:15]}  cxd4 {[%clk 0:02:07]} 25. Red1 {[%clk 0:02:16]}  b5 {[%clk 0:02:00]} 26. Qa5 {[%clk 0:02:02]}  dxe3 {[%clk 0:01:59]} 27. Qxd8+ {[%clk 0:01:40]}  Rxd8 {[%clk 0:01:59]} 28. Rxd8+ {[%clk 0:01:41]}  Kh7 {[%clk 0:01:59]} 29. fxe3 {[%clk 0:01:36]}  Qxb2 {[%clk 0:01:55]} 30. R8d2 {[%clk 0:01:29]}  Qa3 {[%clk 0:01:54]} 31. Kf2 {[%clk 0:01:29]}  b4 {[%clk 0:01:51]} 32. Be4+ {[%clk 0:01:14]}  g6 {[%clk 0:01:50]} 33. Bb1 {[%clk 0:01:13]}  a5 {[%clk 0:01:47]} 34. Rd3 {[%clk 0:00:59]}  Qb2+ {[%clk 0:01:47]} 35. R3d2 {[%clk 0:00:58]}  Qf6+ {[%clk 0:01:45]} 36. Kg1 {[%clk 0:00:58]}  Qe5 {[%clk 0:01:46]} 37. Kf2 {[%clk 0:00:58]}  a4 {[%clk 0:01:46]} 38. Rd4 {[%clk 0:00:58]}  b3 {[%clk 0:01:40]} 39. axb3 {[%clk 0:00:59]}  axb3 {[%clk 0:01:39]} 40. R1d2 {[%clk 0:00:58]}  Kg7 {[%clk 0:01:36]} 41. Bd3 {[%clk 0:00:56]}  Qa5 {[%clk 0:01:35]} 42. Be4 {[%clk 0:00:49]}  Qc3 {[%clk 0:01:33]} 43. R4d3 {[%clk 0:00:43]}  Qf6+ {[%clk 0:01:30]} 44. Ke2 {[%clk 0:00:42]}  Bc4 {[%clk 0:01:30]} 45. Rc2 {[%clk 0:00:38]} 0-1


[Site "https://www.chess.com"]

[Event "Titled Tuesday Blitz January 25 2022"]
[White "Dronavalli, Harika"]
[Black "Gnechko, Ruslan"]
[WhiteFideId "5015197"]
[BlackFideId "14135868"]
[WhiteElo "2382"]
[BlackElo "2289"]
[Result "1/2-1/2"]
[Round "07"]
[TimeControl "180+1"]
[Date "2022.01.26"]
[WhiteClock "0:01:06"]
[BlackClock "0:01:22"]

1. d4 {[%clk 0:03:00]}  Nf6 {[%clk 0:02:59]} 2. c4 {[%clk 0:03:00]}  e6 {[%clk 0:03:00]} 3. Nc3 {[%clk 0:03:00]}  Bb4 {[%clk 0:02:59]} 4. e3 {[%clk 0:03:00]}  d5 {[%clk 0:02:59]} 5. Bd2 {[%clk 0:02:59]}  O-O {[%clk 0:02:59]} 6. Nf3 {[%clk 0:02:59]}  c5 {[%clk 0:02:59]} 7. a3 {[%clk 0:02:58]}  Bxc3 {[%clk 0:02:56]} 8. Bxc3 {[%clk 0:02:58]}  cxd4 {[%clk 0:02:55]} 9. Nxd4 {[%clk 0:02:56]}  Nc6 {[%clk 0:02:52]} 10. Rc1 {[%clk 0:02:52]}  Bd7 {[%clk 0:02:51]} 11. b4 {[%clk 0:02:49]}  Ne4 {[%clk 0:02:47]} 12. cxd5 {[%clk 0:02:48]}  Nxc3 {[%clk 0:02:46]} 13. Rxc3 {[%clk 0:02:48]}  exd5 {[%clk 0:02:47]} 14. Be2 {[%clk 0:02:41]}  Rc8 {[%clk 0:02:45]} 15. Rc5 {[%clk 0:02:26]}  Nxd4 {[%clk 0:02:42]} 16. Qxd4 {[%clk 0:02:25]}  Be6 {[%clk 0:02:40]} 17. O-O {[%clk 0:02:23]}  Rxc5 {[%clk 0:02:39]} 18. Qxc5 {[%clk 0:02:23]}  b6 {[%clk 0:02:39]} 19. Qd4 {[%clk 0:02:24]}  Qc7 {[%clk 0:02:36]} 20. Rd1 {[%clk 0:02:12]}  g6 {[%clk 0:02:31]} 21. h3 {[%clk 0:02:11]}  Rc8 {[%clk 0:02:30]} 22. Ba6 {[%clk 0:02:08]}  Rb8 {[%clk 0:02:24]} 23. Be2 {[%clk 0:01:57]}  Rc8 {[%clk 0:02:23]} 24. Bf3 {[%clk 0:01:57]}  Qc3 {[%clk 0:02:17]} 25. Bxd5 {[%clk 0:01:45]}  Bxd5 {[%clk 0:02:09]} 26. Qxd5 {[%clk 0:01:38]}  Qxa3 {[%clk 0:02:09]} 27. Qd7 {[%clk 0:01:32]}  Rc1 {[%clk 0:02:02]} 28. b5 {[%clk 0:01:22]}  Rxd1+ {[%clk 0:02:01]} 29. Qxd1 {[%clk 0:01:22]}  Qb2 {[%clk 0:01:46]} 30. Qd7 {[%clk 0:01:17]}  Kg7 {[%clk 0:01:31]} 31. g3 {[%clk 0:01:17]}  a6 {[%clk 0:01:22]} 32. bxa6 {[%clk 0:01:08]}  Qa1+ {[%clk 0:01:21]} 33. Kh2 {[%clk 0:01:06]}  Qxa6 {[%clk 0:01:22]} 34. Qd4+ {[%clk 0:01:05]}  Kg8 {[%clk 0:01:21]} 35. Qd8+ {[%clk 0:01:05]}  Kg7 {[%clk 0:01:21]} 36. Qd4+ {[%clk 0:01:05]}  Kg8 {[%clk 0:01:21]} 37. Qd8+ {[%clk 0:01:06]}  Kg7 {[%clk 0:01:22]} 38. Qd4+ {[%clk 0:01:06]} 1/2-1/2


[Site "https://www.chess.com"]

[Event "Titled Tuesday Blitz January 25 2022"]
[White "Harshavardhan G B"]
[Black "Iskusnyh, Sergei"]
[WhiteFideId "25059009"]
[BlackFideId "4120027"]
[WhiteElo "1831"]
[BlackElo "2492"]
[Result "0-1"]
[Round "07"]
[TimeControl "180+1"]
[Date "2022.01.26"]
[WhiteClock "0:00:10"]
[BlackClock "0:00:17"]

1. e4 {[%clk 0:02:53]}  e6 {[%clk 0:02:58]} 2. d4 {[%clk 0:02:52]}  d5 {[%clk 0:02:59]} 3. Nc3 {[%clk 0:02:52]}  Nf6 {[%clk 0:02:59]} 4. e5 {[%clk 0:02:51]}  Nfd7 {[%clk 0:02:58]} 5. f4 {[%clk 0:02:52]}  c5 {[%clk 0:02:58]} 6. Nf3 {[%clk 0:02:51]}  Be7 {[%clk 0:02:58]} 7. Be3 {[%clk 0:02:50]}  O-O {[%clk 0:02:58]} 8. Qd2 {[%clk 0:02:49]}  a6 {[%clk 0:02:59]} 9. Bd3 {[%clk 0:02:45]}  Nc6 {[%clk 0:02:44]} 10. O-O-O {[%clk 0:02:39]}  c4 {[%clk 0:02:38]} 11. Be2 {[%clk 0:02:34]}  b5 {[%clk 0:02:38]} 12. Nb1 {[%clk 0:02:22]}  b4 {[%clk 0:02:35]} 13. Qe1 {[%clk 0:02:01]}  Qa5 {[%clk 0:02:26]} 14. g4 {[%clk 0:01:58]}  Qxa2 {[%clk 0:02:23]} 15. f5 {[%clk 0:01:58]}  c3 {[%clk 0:02:22]} 16. bxc3 {[%clk 0:01:55]}  bxc3 {[%clk 0:02:06]} 17. Nxc3 {[%clk 0:01:54]}  Qa3+ {[%clk 0:01:59]} 18. Kd2 {[%clk 0:01:52]}  Bb4 {[%clk 0:01:59]} 19. Kd3 {[%clk 0:01:50]}  a5 {[%clk 0:01:57]} 20. Bd2 {[%clk 0:01:48]}  Ba6+ {[%clk 0:01:32]} 21. Ke3 {[%clk 0:01:47]}  Bxe2 {[%clk 0:01:32]} 22. Kxe2 {[%clk 0:01:46]}  Qb2 {[%clk 0:01:15]} 23. Rc1 {[%clk 0:01:34]}  Rac8 {[%clk 0:01:12]} 24. Kd3 {[%clk 0:01:02]}  Bxc3 {[%clk 0:00:57]} 25. Bxc3 {[%clk 0:01:03]}  Nb4+ {[%clk 0:00:57]} 26. Bxb4 {[%clk 0:01:02]}  axb4 {[%clk 0:00:57]} 27. Qd2 {[%clk 0:00:59]}  Rc3+ {[%clk 0:00:49]} 28. Ke2 {[%clk 0:00:59]}  Rfc8 {[%clk 0:00:49]} 29. Ne1 {[%clk 0:00:53]}  R3c4 {[%clk 0:00:48]} 30. fxe6 {[%clk 0:00:41]}  fxe6 {[%clk 0:00:47]} 31. Rf1 {[%clk 0:00:40]}  Qxd4 {[%clk 0:00:44]} 32. Qxd4 {[%clk 0:00:37]}  Rxd4 {[%clk 0:00:44]} 33. Nd3 {[%clk 0:00:37]}  Nxe5 {[%clk 0:00:43]} 34. Nxe5 {[%clk 0:00:35]}  Re4+ {[%clk 0:00:43]} 35. Kd3 {[%clk 0:00:35]}  Rxe5 {[%clk 0:00:42]} 36. Ra1 {[%clk 0:00:35]}  Re4 {[%clk 0:00:38]} 37. Ra7 {[%clk 0:00:31]}  Rxg4 {[%clk 0:00:36]} 38. Re7 {[%clk 0:00:27]}  h6 {[%clk 0:00:31]} 39. Rf2 {[%clk 0:00:24]}  Rc3+ {[%clk 0:00:27]} 40. Kd2 {[%clk 0:00:24]}  Rgc4 {[%clk 0:00:27]} 41. Kd1 {[%clk 0:00:23]}  Rd4+ {[%clk 0:00:24]} 42. Ke1 {[%clk 0:00:20]}  Re4+ {[%clk 0:00:23]} 43. Kd1 {[%clk 0:00:20]}  b3 {[%clk 0:00:21]} 44. cxb3 {[%clk 0:00:20]}  Rxb3 {[%clk 0:00:21]} 45. Rc7 {[%clk 0:00:19]}  Rb1+ {[%clk 0:00:20]} 46. Kc2 {[%clk 0:00:19]}  Ra1 {[%clk 0:00:21]} 47. Kb2 {[%clk 0:00:19]}  Rae1 {[%clk 0:00:21]} 48. Rff7 {[%clk 0:00:18]}  Rg1 {[%clk 0:00:20]} 49. Rfe7 {[%clk 0:00:18]}  Re3 {[%clk 0:00:20]} 50. Rc2 {[%clk 0:00:16]}  Rge1 {[%clk 0:00:18]} 51. Rc8+ {[%clk 0:00:12]}  Kh7 {[%clk 0:00:18]} 52. Rcc7 {[%clk 0:00:13]}  R1e2+ {[%clk 0:00:18]} 53. Kc1 {[%clk 0:00:12]}  Rg2 {[%clk 0:00:19]} 54. Kd1 {[%clk 0:00:12]}  Ra3 {[%clk 0:00:18]} 55. Rc1 {[%clk 0:00:11]}  Raa2 {[%clk 0:00:19]} 56. Rxe6 {[%clk 0:00:10]}  Rxh2 {[%clk 0:00:18]} 57. Re1 {[%clk 0:00:10]}  Rad2# {[%clk 0:00:17]} 0-1


[Site "https://www.chess.com"]

[Event "Titled Tuesday Blitz January 25 2022"]
[White "Jaracz, Pawel"]
[Black "Nakamura, Hikaru"]
[WhiteFideId "1102222"]
[BlackFideId "2016192"]
[WhiteElo "2770"]
[BlackElo "3200"]
[Result "0-1"]
[Round "07"]
[TimeControl "180+1"]
[Date "2022.01.26"]
[WhiteClock "0:00:01"]
[BlackClock "0:00:22"]

1. e4 {[%clk 0:03:00]}  g6 {[%clk 0:02:58]} 2. d4 {[%clk 0:03:00]}  Bg7 {[%clk 0:02:58]} 3. Nc3 {[%clk 0:03:00]}  a6 {[%clk 0:02:57]} 4. Bg5 {[%clk 0:03:00]}  b5 {[%clk 0:02:57]} 5. Qd2 {[%clk 0:03:00]}  Bb7 {[%clk 0:02:57]} 6. Nf3 {[%clk 0:02:57]}  d6 {[%clk 0:02:57]} 7. Bd3 {[%clk 0:02:56]}  Nd7 {[%clk 0:02:56]} 8. Ne2 {[%clk 0:02:54]}  c5 {[%clk 0:02:57]} 9. c3 {[%clk 0:02:54]}  Ngf6 {[%clk 0:02:41]} 10. Ng3 {[%clk 0:02:54]}  h6 {[%clk 0:02:36]} 11. Bf4 {[%clk 0:02:49]}  Qc7 {[%clk 0:02:35]} 12. O-O {[%clk 0:02:46]}  e5 {[%clk 0:02:33]} 13. Be3 {[%clk 0:02:43]}  Ng4 {[%clk 0:02:32]} 14. a4 {[%clk 0:02:39]}  Nxe3 {[%clk 0:02:23]} 15. fxe3 {[%clk 0:02:39]}  c4 {[%clk 0:02:12]} 16. Bc2 {[%clk 0:02:38]}  O-O {[%clk 0:02:11]} 17. Ra2 {[%clk 0:02:20]}  Rae8 {[%clk 0:02:10]} 18. axb5 {[%clk 0:02:14]}  axb5 {[%clk 0:02:10]} 19. Ra7 {[%clk 0:02:12]}  Qb6 {[%clk 0:02:08]} 20. Rfa1 {[%clk 0:02:11]}  Nf6 {[%clk 0:01:58]} 21. Qe2 {[%clk 0:01:24]}  h5 {[%clk 0:01:53]} 22. h3 {[%clk 0:01:21]}  Bh6 {[%clk 0:01:52]} 23. Kh1 {[%clk 0:01:14]}  Bg7 {[%clk 0:01:42]} 24. Ng5 {[%clk 0:01:10]}  Bh6 {[%clk 0:01:32]} 25. Nf3 {[%clk 0:01:04]}  Ra8 {[%clk 0:01:24]} 26. Rxa8 {[%clk 0:01:03]}  Rxa8 {[%clk 0:01:24]} 27. Rxa8+ {[%clk 0:01:01]}  Bxa8 {[%clk 0:01:24]} 28. Qf2 {[%clk 0:00:56]}  Nd7 {[%clk 0:01:16]} 29. b3 {[%clk 0:00:46]}  Qc7 {[%clk 0:01:12]} 30. Qe1 {[%clk 0:00:35]}  Bb7 {[%clk 0:01:06]} 31. b4 {[%clk 0:00:27]}  Qb8 {[%clk 0:00:57]} 32. Nh4 {[%clk 0:00:22]}  Qd8 {[%clk 0:00:53]} 33. Nf1 {[%clk 0:00:18]}  Nf6 {[%clk 0:00:52]} 34. Nd2 {[%clk 0:00:16]}  Qa8 {[%clk 0:00:51]} 35. Qf2 {[%clk 0:00:13]}  Nxe4 {[%clk 0:00:32]} 36. Bxe4 {[%clk 0:00:11]}  Bxe4 {[%clk 0:00:32]} 37. Qf6 {[%clk 0:00:07]}  Bxe3 {[%clk 0:00:26]} 38. Nxe4 {[%clk 0:00:05]}  Qxe4 {[%clk 0:00:26]} 39. Nf3 {[%clk 0:00:04]}  exd4 {[%clk 0:00:23]} 40. cxd4 {[%clk 0:00:01]}  c3 {[%clk 0:00:22]} 0-1


[Site "https://www.chess.com"]

[Event "Titled Tuesday Blitz January 25 2022"]
[White "Kim, Sergey"]
[Black "Ocelak, Jakub"]
[WhiteFideId "13700570"]
[BlackFideId "23707933"]
[WhiteElo "2614"]
[BlackElo "2048"]
[Result "1-0"]
[Round "07"]
[TimeControl "180+1"]
[Date "2022.01.26"]
[WhiteClock "0:01:01"]
[BlackClock "0:00:16"]

1. d4 {[%clk 0:03:00]}  Nf6 {[%clk 0:03:00]} 2. c4 {[%clk 0:03:00]}  g6 {[%clk 0:03:00]} 3. Nc3 {[%clk 0:03:00]}  Bg7 {[%clk 0:03:00]} 4. e4 {[%clk 0:03:00]}  O-O {[%clk 0:03:01]} 5. Nge2 {[%clk 0:03:00]}  d6 {[%clk 0:02:57]} 6. Ng3 {[%clk 0:03:00]}  c5 {[%clk 0:02:51]} 7. d5 {[%clk 0:02:59]}  e6 {[%clk 0:02:51]} 8. Be2 {[%clk 0:03:00]}  exd5 {[%clk 0:02:46]} 9. cxd5 {[%clk 0:03:01]}  h5 {[%clk 0:02:41]} 10. Bg5 {[%clk 0:03:00]}  a6 {[%clk 0:02:34]} 11. a4 {[%clk 0:02:59]}  Qa5 {[%clk 0:02:34]} 12. O-O {[%clk 0:02:56]}  Re8 {[%clk 0:02:27]} 13. Qd2 {[%clk 0:02:52]}  Nbd7 {[%clk 0:02:24]} 14. f4 {[%clk 0:02:37]}  Nh7 {[%clk 0:02:22]} 15. Bh4 {[%clk 0:02:36]}  Bd4+ {[%clk 0:02:15]} 16. Kh1 {[%clk 0:02:36]}  Ndf6 {[%clk 0:02:14]} 17. e5 {[%clk 0:02:19]}  Nxd5 {[%clk 0:02:06]} 18. exd6 {[%clk 0:02:10]}  Bd7 {[%clk 0:01:31]} 19. f5 {[%clk 0:01:41]}  Kg7 {[%clk 0:01:17]} 20. fxg6 {[%clk 0:01:31]}  fxg6 {[%clk 0:01:18]} 21. Bc4 {[%clk 0:01:19]}  Ndf6 {[%clk 0:01:00]} 22. Bxf6+ {[%clk 0:01:11]}  Nxf6 {[%clk 0:01:01]} 23. Qg5 {[%clk 0:01:10]}  Be6 {[%clk 0:00:20]} 24. Rxf6 {[%clk 0:01:06]}  Bxf6 {[%clk 0:00:18]} 25. Nxh5+ {[%clk 0:01:06]}  Kh7 {[%clk 0:00:17]} 26. Nxf6+ {[%clk 0:01:06]}  Kg7 {[%clk 0:00:18]} 27. Nxe8+ {[%clk 0:01:04]}  Rxe8 {[%clk 0:00:17]} 28. Qe5+ {[%clk 0:01:02]}  Kf7 {[%clk 0:00:16]} 29. Rf1+ {[%clk 0:01:01]}  Kg8 {[%clk 0:00:16]} 30. Bxe6+ {[%clk 0:01:01]} 1-0


[Site "https://www.chess.com"]